Cogmind - Beta 9.5 @@@ ROGUE MODE // 2020.04.09 @ 11:00:48 // AFD2020/Player2 Player: Nikolayag Result: Core destroyed Performance ------------- Evolutions (0) 0 Regions Visited (1) 200 Robots Destroyed (17) 85 Value Destroyed (408) 408 Prototype IDs (0) 0 Alien Tech Used (0) 0 Bonus (96) 96 TOTAL SCORE: 789 Bonus ------- Follower Combat Kills 174 Friendly Fire -78 Cogmind --------- Core Integrity 0/250 Matter 222/300 Energy 125/125 System Corruption 0% Temperature Cool (0) Movement Rolling (100) Ox1 Location -10/Materials Parts ------- > --- POWER (1) -------- Light Ion Engine > --- PROPULSION (2) --- Armored Wheel Armored Wheel > --- UTILITY (2) ------ Large Storage Unit Large Storage Unit > --- WEAPON (2) ------- Assault Rifle Light Assault Rifle > --- INVENTORY (16) --- Light Ion Engine Light Nuclear Core Light Treads Light Treads Compact Wheel Compact Wheel Improved Heat Sink Targeting Computer Medium Laser Peak State ------------ > --- POWER ------------ Light Ion Engine > --- PROPULSION ------- Armored Wheel Armored Wheel > --- UTILITY ---------- Large Storage Unit Large Storage Unit > --- WEAPON ----------- Assault Rifle Light Assault Rifle > --- INVENTORY -------- Light Ion Engine Light Nuclear Core Light Treads Light Treads Wheel Wheel Compact Wheel Compact Wheel Improved Heat Sink Targeting Computer Medium Laser [Rating: 10] Favorites ----------- Power Light Ion Engine Engine Light Ion Engine Propulsion Wheel Wheel Wheel Utility Large Storage Unit Storage Large Storage Unit Weapon Assault Rifle Energy Gun Medium Laser Ballistic Gun Assault Rifle Build | -11 -10 ------- Run | Scr Mat Slots Evolved . | . . Power . | . . Propulsion . | . . Utility . | . . Weapon . | . . Parts Attached 12 | 8 4 Power 1 | 1 . Engine 1 | 1 . Core . | . . Reactor . | . . Propulsion 4 | 2 2 Treads . | . . Leg . | . . Wheel 4 | 2 2 Hover . | . . Flight . | . . Utility 4 | 2 2 Device . | . . Storage 4 | 2 2 Processor . | . . Hackware . | . . Protection . | . . Artifact . | . . Weapon 3 | 3 . Energy Gun 1 | 1 . Energy Cannon . | . . Ballistic Gun 2 | 2 . Ballistic Cannon . | . . Launcher . | . . Special Weapon . | . . Impact Weapon . | . . Slashing Weapon . | . . Piercing Weapon . | . . Special Melee Weapon . | . . Unidentified Prototypes . | . . Parts Lost . | . . Power . | . . Propulsion . | . . Utility . | . . Weapon . | . . Highest Loss Streak . | . . Average Slot Usage (%) 100 | . 100 Engine 14 | . 14 Wheel 28 | . 28 Storage 28 | . 28 Ballistic Gun 28 | . 28 Naked Turns . | . . Heaviest Build 38 | 14 38 Greatest Support 28 | 26 28 Greatest Overweight (x) 1 | . 1 Average Overweight (x) . | . . Largest Inventory Capacity 16 | 8 16 Average Capacity 12 | 5 13 Most Carried 13 | 4 13 Average Carried 5 | 2 5 Final Capacity 16 | 8 16 Final Carried 9 | 4 9 Class Distribution -------------------- 100% | Mutant Dominant Class ---------------- Mutant | -10/Materials Resources | -11 -10 ----------- Run | Scr Mat Matter Collected 522 | 288 234 Remotely . | . . Salvage Created 721 | 82 639 Parts 32 | 1 31 Haulers Intercepted . | . . Recyclers Shooed 1 | . 1 Parts Field Recycled . | . . Retrieved Matter . | . . Parts Self-Destructed . | . . Prevented . | . . Kills | -11 -10 ------- Run | Scr Mat Combat Hostiles Destroyed 11 | . 11 Guns 11 | . 11 Classes Destroyed 6 | 1 5 Worker 2 | . 2 Builder 1 | . 1 Recycler 2 | 1 1 Watcher 1 | . 1 Swarmer 1 | . 1 Grunt 10 | . 10 Best Kill Streak 4 | 1 4 Combat Bots Only 3 | . 3 Max Kills in Single Turn 1 | 1 1 Gunslinging . | . . Exploded . | . . Melee . | . . Uniques/NPCs Destroyed . | . . Combat | -11 -10 -------- Run | Scr Mat Damage Taken 416 | . 416 Core 134 | . 134 Absorbed by Shields . | . . Core Remaining (%) 100 | 100 . Volleys Fired 70 | 2 68 Largest 2 | 2 2 Hottest 40 | 40 40 Shots Fired 140 | 4 136 Gun 140 | 4 136 Cannon . | . . Launcher . | . . Special . | . . Kinetic 140 | 4 136 Thermal . | . . Explosive . | . . Electromagnetic . | . . Robot Hit Streak 10 | 3 10 Robot Miss Streak 6 | . 6 Penetration Max . | . . Secondary Targets 3 | . 3 Max Gunslinging Chain 1 | . 1 Shots Hit Robots 88 | 3 85 Core Hits 33 | 2 31 Critical Hits 1 | . 1 Critical Kills . | . . Critical Parts Destroyed 1 | . 1 Melee Attacks . | . . Impact . | . . Slashing . | . . Piercing . | . . Sneak Attacks . | . . Combat Hostiles . | . . Follow-up Attacks . | . . Damage Inflicted 941 | 30 911 Guns 941 | 30 911 Cannons . | . . Explosions . | . . Melee . | . . Ramming . | . . Kinetic 941 | 30 911 Thermal . | . . Explosive . | . . Electromagnetic . | . . Impact . | . . Slashing . | . . Piercing . | . . Highest Corruption . | . . Average Corruption . | . . Corruption Purged . | . . Overload Shots . | . . Overflow Damage . | . . Projectiles . | . . Explosions . | . . Melee . | . . Knockbacks . | . . Impact . | . . Kinetic . | . . Secondary . | . . Self-Inflicted Damage . | . . Shots . | . . Rammed . | . . Targets Rammed . | . . Kicked . | . . Crushed . | . . Highest Temperature 15 | . 15 Average Temperature 6 | . 6 Received Heat Transfer 189 | . 189 Siege Activations . | . . Robots Corrupted . | . . Combat Hostiles . | . . Parts Fried . | . . Impact Corruptions . | . . Robots Melted . | . . Combat Hostiles . | . . Parts Melted . | . . Heat Transferred . | . . Parts Sabotaged . | . . Parts Stolen . | . . Parts Stripped . | . . Power Chain Reactions . | . . Missiles Intercepted . | . . Alert | -11 -10 ------- Run | Scr Mat Peak Influence 409 | 5 409 Average Influence 219 | 1 234 Maximum Alert Level 2 | . 2 Low Security (%) 30 | 100 26 Level 1 62 | . 66 Level 2 6 | . 7 Level 3 . | . . Level 4 . | . . Level 5 . | . . High Security . | . . Max Security . | . . Squads Dispatched 5 | . 5 Investigation 2 | . 2 Extermination . | . . Reinforcement 3 | . 3 Assault . | . . Garrison . | . . Intercept . | . . Construction Impeded . | . . Haulers Reinforced . | . . Stealth | -11 -10 --------- Run | Scr Mat Distress Signals 1 | . 1 Communications Jammed . | . . Distress Signals . | . . Times Spotted 25 | . 25 Peak Tracking Total 4 | . 4 Tactical Retreats . | . . Traps | -11 -10 ------- Run | Scr Mat Traps Triggered 1 | . 1 Indirectly . | . . Trap Hack Attempts . | . . Triggered . | . . Disarmed . | . . Reprogrammed . | . . Reused . | . . Traps Extracted . | . . Installed . | . . Triggered 1 | . 1 Machines | -11 -10 ---------- Run | Scr Mat Machines Disabled 1 | . 1 Max in Single Turn . | . . Machines Sabotaged . | . . Garrisons Compromised . | . . Overloaded Fab Kills . | . . Fab Network Shutdowns . | . . Hacking | -11 -10 --------- Run | Scr Mat Machines Accessed 1 | . 1 Terminals 1 | . 1 Fabricators . | . . Repair Stations . | . . Recycling Units . | . . Scanalyzers . | . . Garrison Access . | . . Total Hacks 3 | . 3 Successful 1 | . 1 Failed 2 | . 2 Catastrophic . | . . Database Lockouts . | . . Manual . | . . Terminals 3 | . 3 Fabricators . | . . Repair Stations . | . . Recycling Units . | . . Scanalyzers . | . . Garrison Access . | . . Terminal Hacks 1 | . 1 Hauler Manifests 1 | . 1 Fabricator Hacks . | . . Repair Station Hacks . | . . Recycling Unit Hacks . | . . Scanalyzer . | . . Garrison Access Hacks . | . . Unauthorized Hacks . | . . Terminals . | . . Fabricators . | . . Repair Stations . | . . Recycling Units . | . . Scanalyzers . | . . Garrison Access . | . . Data Cores Recovered . | . . Used . | . . Hacking Detections 1 | . 1 Full Trace Events 1 | . 1 Feedback Events . | . . Feedback Blocked . | . . Robot Schematics Acquired . | . . Robots Built . | . . Matter . | . . Time . | . . Total Robot Build Rating . | . . Part Schematics Acquired . | . . Parts Built . | . . Matter . | . . Time . | . . Total Part Build Rating . | . . Parts Repaired . | . . Time . | . . Parts Recycled . | . . Recycled Matter . | . . Retrieved Matter . | . . Retrieved Components . | . . Parts Scanalyzed . | . . Part Schematics Acquired . | . . Parts Damaged . | . . Bothacking | -11 -10 ------------ Run | Scr Mat Used RIF Installer . | . . Robots Hacked . | . . Non-combat . | . . Combat . | . . Robot Hacks Applied . | . . Relay Couplers Released . | . . Robots Rewired . | . . Allies Hacked . | . . Hacks Repelled . | . . Allies | -11 -10 -------- Run | Scr Mat Total Allies 1 | . 1 Largest Group 1 | . 1 Highest-Rated Group 62 | . 62 Highest-Rated Ally 62 | . 62 Total Orders . | . . Ally Attacks 48 | . 48 Total Damage 729 | . 729 Kills 9 | . 9 Allies Corrupted . | . . Allies Melted . | . . Intel | -11 -10 ------- Run | Scr Mat Robot Analysis Total . | . . Derelict Logs Recovered . | . . Drone Launches . | . . Drone Recoveries . | . . Exploration | -11 -10 ------------- Run | Scr Mat Turns Passed 992 | 64 928 Spaces Moved 679 | 48 631 Core 2 | 2 . Treads . | . . Legs . | . . Wheels 677 | 46 631 Hover . | . . Flight . | . . Fastest Speed 50 | 50 90 Average Speed 96 | 87 96 Slowest Speed 105 | 90 105 Overloaded Moves . | . . Propulsion Burnouts . | . . Robots Hopped . | . . Cave-ins Triggered . | . . Exploration Rate (%) 47 | 4 90 Regions Visited 1 Branch Regions . Pre-discovered Areas . | . . Known Exits Taken . | . . Unknown Exits Taken 1 | 1 . Scrap Searched . | . . Spaces Dug . | . . Terrain Destroyed . | . . Melee . | . . Projectile . | . . AOE . | . . Actions | -11 -10 --------- Run | Scr Mat Total 893 | 62 831 Wait 104 | 1 103 Move 678 | 47 631 Hop . | . . Pick Up 17 | 4 13 Fast Attach 7 | 7 . Attach . | . . Detach . | . . Swap 5 | 1 4 Drop 12 | . 12 Fire 70 | 2 68 Melee . | . . Ram . | . . Kick . | . . Crush . | . . Escape Stasis . | . . Rewire . | . . Trap . | . . Miscellaneous . | . . Route ------- -11/Scrapyard -10/Materials (discovered 4 exits: [*Mat x3] / [*Min]) History --------- Turn | Location | Event 13 | -11/Scrapyard | Discovered new exit (range 16) 65 | -11/Scrapyard | Entered Materials 318 | -10/Materials | Build established: Mutant 343 | -10/Materials | Discovered new exit (range 5) 497 | -10/Materials | Discovered new exit (range 15) 565 | -10/Materials | Discovered new exit (range 9) 570 | -10/Materials | Core integrity fell below 50% 703 | -10/Materials | Discovered new exit (range 8) 915 | -10/Materials | Core integrity fell below 20% 993 | -10/Materials | Core destroyed Last Messages --------------- 00902_ K-01 Serf collects debris. 00917_ Acquired Lgt. Treads. 00920_ Player 2 attaches Lgt. Ion Engine. 00922_ Acquired 42 matter. 00929_ G-34 Mercenary system corrupted by crushing effect. 00929_ Player 2 follow-up attacks with Maul. 00929_ G-34 Mercenary IFF system glitched. 00930_ G-34 Mercenary system terminally corrupted. 00932_ K-01 Serf collects debris. 00937_ G-47 Trooper knocked back. 00941_ K-01 Serf collects debris. 00949_ G-47 Trooper destroyed. 00949_ Player 2 attaches Maul. 00952_ Player 2 acquires Lgt. Nuclear Core. Player 2: "Leave the Aluminum Leg for me, please." 00969_ R-06 Scavenger collects Lgt. Ion Engine. 00975_ Player 2 attaches Aluminum Leg. 00977_ Player 2 attaches Lgt. Nuclear Core. 00981_ Player 2 attaches Aluminum Leg. 00983_ K-01 Serf cleans the Processing Tank. Map ----- +----------------------------------------------------+ | #%= # ## """ ######+########### | | #!%=# ## """ # | | !#= # ## < # | | # # ## # | | + + ## ##################### ##+#### | | # # ## #??? ? # # ?? | | # # ## #???" #?""" """ # # #? | | ## # ## # """ # """ """ # # ## | | # #T # """ # """ """ # # ## | | ########### + """ # # # ## | | #?????????# # "" # # # ## | | #+##########???# # """ # # # ## | | #???# #! "" ##########+## ####### | | """ ""#???# # "" ### | | """"" T"#???# # " + | | """"" ""????# # ### """ | | """"" ???????# #########?## """ """ "T" # | | """ ???????# #?????????## """ """ # | | ???????# #?????????#" """ """ | | ################ ########??#T """% """ | | %! #??#" "" """ | | m % [ #??## % | | ! ##### # | | ###################+### ! ######## | | ????????????# #% = =% ## | | ????????????# # <@##### % =% + """ | | ????????????# """"" # #???# * ! ## """ | | ????????????# """"" #####???# ###########! """ | | ????????????# """"" ######### #########?# | | ????????????# # # # !! #?# """ | | ????????????? ! # + + !! #?# """ | | ?????????????? # # # ! !#?# """ | | ???????????????################ ########### | | ???????????????# # ##### ! ##+#### | | ???????????????# + #? | | ???????????????# """ """ """ # T #? | | ??????????????????"" """ """ # ##### ######? | | ???????????????????? """ """ ######???######?????? | | ???????????????????? #???????????????????? | | ?????????????????????#########???????????????????? | | ?????????????????????????????????????????????????? | | | | | | | | | | | | | | | | | | | +----------------------------------------------------+ Best States ------------- Heat Dissipation 25 Energy Generation 10 Energy Capacity 125 Matter Stores 300 Matter Capacity 300 Sight Range 16 Terrain Scan Density 10 Evasion (%) 42 Item Schematics ----------------- None Robot Schematics ------------------ None Fabricated ------------ Nothing Alien Tech Used ----------------- None Achievements -------------- None Challenges ------------ None Game ------ Seed InsulatedGodAutohacker Manual? 0 Play Time 00:14:57 Cumulative 247.8 hours Start 2020.04.09 @ 07:41:50 End 2020.04.09 @ 11:00:48 Sessions 2 Manual Loads 0 Difficulty Rogue Special Mode AFD2020/Player2 Game No. 195 Rogue 195 Adventurer 0 Explorer 0 Win Type - Total 5 Types 5/0/0/0/0/0/0 Lore% 74 Gallery% 84 Achievement% 67 Wizard Run 0 Options --------- ASCII 0 Keyboard 1 Movement Numpad Keybinds 0 Fullscreen 2 Font 18/SmallcapsGlow Map View 76x50 Tactical HUD 1 Map Filters NONE Filters NONE Steam X RUN: e3d21b0b-7b33-414e-8d85-cc7bd96024cc